fUSD/lending_fUSD_20240429
["ID","MTS","AMOUNT","RATE_DAILY","PERIOD"]
[324882179,1714393855542,-565.9,0.00011527,2]
[324882180,1714393855551,-151.0,0.00011527,2]
[324882181,1714393855560,-746.75,0.00011527,2]
[324882182,1714393855570,-500.0,0.00011527,2]
[324882183,1714393855579,-500.0,0.00011527,2]
[324882184,1714393855588,-500.0,0.00011527,2]
[324882185,1714393855597,-154.209445,0.00011527,2]
[324882186,1714393855606,-500.0,0.00011527,2]
[324882187,1714393855615,-943.09,0.00011527,2]
[324882188,1714393855624,-500.0,0.00011527,2]
[324882189,1714393855633,-500.0,0.00011527,2]
[324882190,1714393855642,-500.0,0.00011527,2]
[324882191,1714393855651,-500.0,0.00011527,2]
[324882192,1714393855660,-780.31,0.00011527,2]
[324882193,1714393855669,-1007.67,0.00011527,2]
[324882194,1714393855678,-500.0,0.00011527,2]
[324882195,1714393855687,-500.0,0.00011527,2]
[324882196,1714393855696,-500.0,0.00011527,2]
[324882197,1714393855705,-500.0,0.00011527,2]
[324882198,1714393855715,-500.0,0.00011527,2]
[324882199,1714393855724,-500.0,0.00011527,2]
[324882200,1714393855733,-500.0,0.00011527,2]
[324882201,1714393855742,-500.0,0.00011527,2]
[324882202,1714393855751,-500.0,0.00011527,2]
[324882203,1714393855760,-500.0,0.00011527,2]
[324882204,1714393855769,-735.52,0.00011527,2]
[324882205,1714393855778,-591.30685691,0.00011527,2]
[324882206,1714393855788,-507.74,0.00011527,2]
[324882207,1714393855797,-1371.61,0.00011527,2]
[324882208,1714393855807,-500.0,0.00011527,2]
[324882209,1714393855816,-500.0,0.00011527,2]
[324882210,1714393855826,-500.0,0.00011527,2]
[324882211,1714393855835,-917.74,0.00011527,2]
[324882212,1714393855844,-500.0,0.00011527,2]
[324882213,1714393855855,-537.23,0.00011527,2]
[324882214,1714393855864,-571.08,0.00011527,2]
[324882215,1714393855874,-500.0,0.00011527,2]
[324882216,1714393855883,-500.0,0.00011527,2]
[324882217,1714393855892,-5524.5,0.00011527,2]
[324882218,1714393855902,-2383.4,0.00011527,2]
[324882219,1714393855911,-933.07,0.00011527,2]
[324882220,1714393855921,-500.0,0.00011527,2]
[324882221,1714393855931,-500.0,0.00011527,2]
[324882222,1714393855941,-500.0,0.00011527,2]
[324882223,1714393855950,-500.0,0.00011527,2]
[324882224,1714393855960,-500.0,0.00011527,2]
[324882225,1714393855969,-500.0,0.00011527,2]
[324882226,1714393855979,-500.0,0.00011527,2]
[324882227,1714393855989,-1165.02,0.00011527,2]
[324882228,1714393855998,-500.0,0.00011527,2]
[324882229,1714393856008,-500.0,0.00011527,2]
[324882230,1714393856017,-500.0,0.00011527,2]
[324882231,1714393856026,-500.0,0.00011527,2]
[324882232,1714393856036,-500.0,0.00011527,2]
[324882233,1714393856048,-500.0,0.00011527,2]
[324882234,1714393856061,-500.0,0.00011527,2]
[324882235,1714393856071,-500.0,0.00011527,2]
[324882236,1714393856082,-500.0,0.00011527,2]
[324882237,1714393856093,-500.0,0.00011527,2]
[324882238,1714393856102,-500.0,0.00011527,2]
[324882239,1714393856114,-556.94,0.00011527,2]
[324882240,1714393856125,-500.0,0.00011527,2]
[324882241,1714393856137,-500.0,0.00011527,2]
[324882242,1714393856147,-5767.47,0.00011527,2]
[324882243,1714393856157,-500.0,0.00011527,2]
[324882244,1714393856167,-500.0,0.00011527,2]
[324882245,1714393856176,-500.0,0.00011527,2]
[324882246,1714393856187,-500.0,0.00011527,2]
[324882247,1714393856196,-1209.79,0.00011527,2]
[324882248,1714393856207,-500.0,0.00011527,2]
[324882249,1714393856216,-500.0,0.00011527,2]
[324882250,1714393856226,-585.1382029,0.00011527,2]
[324882251,1714393856235,-500.0,0.00011527,2]
[324882252,1714393856247,-500.0,0.00011527,2]
[324882253,1714393856257,-500.0,0.00011527,2]
[324882254,1714393856267,-500.0,0.00011527,2]
[324882255,1714393856276,-294.92,0.00011527,2]
[324882256,1714393856286,-500.0,0.00011527,2]
[324882257,1714393856297,-507.78575622,0.00011547,2]
[324882258,1714393856307,-506.51900365,0.00011547,2]
[324882259,1714393856316,-500.0,0.00011547,2]
[324882260,1714393856327,-500.0,0.00011547,2]
[324882261,1714393856336,-500.0,0.00011547,2]
[324882262,1714393856346,-500.0,0.00011547,2]
[324882263,1714393856358,-500.0,0.00011547,2]
[324882264,1714393856368,-997.25,0.00011547,2]
[324882265,1714393856377,-500.0,0.00011547,2]
[324882266,1714393856386,-500.0,0.00011547,2]
[324882267,1714393856396,-646.2,0.00011547,2]
[324882268,1714393856406,-500.0,0.00011547,2]
[324882269,1714393856415,-500.0,0.00011547,2]
[324882270,1714393856425,-500.0,0.00011547,2]
[324882271,1714393856435,-500.0,0.00011547,2]
[324882272,1714393856444,-151.0,0.00011547,2]
[324882273,1714393856455,-151.0,0.00011547,2]
[324882274,1714393856466,-500.0,0.00011547,2]
[324882275,1714393856475,-151.0,0.00011547,2]
[324882276,1714393856486,-151.0,0.00011547,2]
[324882277,1714393856497,-500.0,0.00011547,2]
[324882278,1714393856507,-500.0,0.00011547,2]
[324882279,1714393856519,-500.0,0.00011547,2]
[324882280,1714393856530,-257.07613317,0.00011547,2]
[324882281,1714393856540,-500.0,0.00011547,2]
[324882282,1714393856550,-500.0,0.00011547,2]
[324882283,1714393856561,-500.0,0.00011547,2]
[324882284,1714393856573,-500.0,0.00011547,2]
[324882285,1714393856583,-196.057954,0.00011547,2]
[324882286,1714393856594,-500.0,0.00011547,2]
[324882287,1714393856605,-313.94,0.00011547,2]
[324882288,1714393856614,-196.057954,0.00011547,2]
[324882289,1714393856624,-928.69,0.00011547,2]
[324882290,1714393856634,-500.0,0.00011547,2]
[324882291,1714393856644,-500.0,0.00011547,2]
[324882292,1714393856654,-277.048538,0.00011547,2]
[324882293,1714393856664,-500.0,0.00011547,2]
[324882294,1714393856674,-500.0,0.00011547,2]
[324882295,1714393856684,-500.0,0.00011547,2]
[324882296,1714393856693,-500.0,0.00011547,2]
[324882297,1714393856703,-500.0,0.00011547,2]
[324882298,1714393856713,-500.0,0.00011547,2]
[324882299,1714393856723,-500.0,0.00011547,2]
[324882300,1714393856732,-151.0,0.00011547,2]
[324882301,1714393856742,-500.0,0.00011547,2]
[324882302,1714393856752,-548.64902866,0.00011547,2]
[324882303,1714393856763,-500.0,0.00011547,2]
[324882304,1714393856772,-500.0,0.00011547,2]
[324882305,1714393856782,-500.0,0.00011547,2]
[324882306,1714393856794,-500.0,0.00011547,2]
[324882307,1714393856804,-500.0,0.00011547,2]
[324882308,1714393856814,-500.0,0.00011547,2]
[324882309,1714393856824,-500.0,0.00011547,2]
[324882310,1714393856833,-500.0,0.00011547,2]
[324882311,1714393856842,-500.0,0.00011547,2]
[324882312,1714393856852,-204.87380471,0.00011547,2]
[324882313,1714393856862,-500.0,0.00011547,2]
[324882314,1714393856871,-500.0,0.00011547,2]
[324882315,1714393856881,-586.09698232,0.00011547,2]
[324882316,1714393856892,-500.0,0.00011547,2]
[324882317,1714393856902,-151.0,0.00011547,2]
[324882318,1714393856912,-500.0,0.00011547,2]
[324882319,1714393856922,-503.16,0.00011547,2]
[324882320,1714393856933,-500.0,0.00011547,2]
[324882321,1714393856943,-151.0,0.00011547,2]
[324882322,1714393856952,-151.0,0.00011547,2]
[324882323,1714393856962,-500.0,0.00011547,2]
[324882324,1714393856971,-500.0,0.00011547,2]
[324882325,1714393856982,-500.0,0.00011547,2]
[324882326,1714393856992,-500.0,0.00011547,2]
[324882327,1714393857002,-460.14,0.00011547,2]
[324882328,1714393857011,-500.0,0.00011547,2]
[324882329,1714393857021,-500.0,0.00011547,2]
[324882330,1714393857030,-642.24737263,0.00011547,2]
[324882331,1714393857041,-500.0,0.00011547,2]
[324882332,1714393857052,-500.0,0.00011547,2]
[324882333,1714393857062,-500.0,0.00011547,2]
[324882334,1714393857073,-500.0,0.00011547,2]
[324882335,1714393857083,-500.0,0.00011547,2]
[324882336,1714393857094,-500.0,0.00011547,2]
[324882337,1714393857103,-500.0,0.00011547,2]
[324882338,1714393857113,-297.43,0.00011547,2]
[324882339,1714393857123,-500.0,0.00011547,2]
[324882340,1714393857134,-500.0,0.00011547,2]
[324882341,1714393857144,-500.0,0.00011547,2]
[324882342,1714393857153,-500.0,0.00011547,2]
[324882343,1714393857163,-500.0,0.00011547,2]
[324882344,1714393857172,-151.0,0.00011547,2]
[324882345,1714393857182,-492.69346,0.00011547,2]
[324882346,1714393857192,-500.0,0.00011547,2]
[324882347,1714393857202,-492.69346,0.00011547,2]
[324882348,1714393857212,-294.20396779,0.00011547,2]
[324882349,1714393857222,-500.0,0.00011547,2]
[324882350,1714393857232,-601.57205789,0.00011547,2]
[324882351,1714393857241,-500.0,0.00011547,2]
[324882352,1714393857250,-500.0,0.00011547,2]
[324882353,1714393857260,-862.54,0.00011547,2]
[324882354,1714393857270,-399.96,0.00011547,2]
[324882355,1714393857279,-500.0,0.00011547,2]
[324882356,1714393857289,-500.0,0.00011547,2]
[324882357,1714393857298,-500.0,0.00011547,2]
[324882358,1714393857308,-500.0,0.00011547,2]
[324882359,1714393857318,-500.0,0.00011547,2]
[324882360,1714393857327,-500.0,0.00011547,2]
[324882361,1714393857336,-500.0,0.00011547,2]
[324882362,1714393857346,-500.0,0.00011547,2]
[324882363,1714393857355,-500.0,0.00011547,2]
[324882364,1714393857365,-504.95606857,0.00011547,2]
[324882365,1714393857375,-505.24113905,0.00011547,2]
[324882366,1714393857384,-295.43,0.00011547,2]
[324882367,1714393857394,-500.0,0.00011547,2]
[324882368,1714393857404,-500.0,0.00011547,2]
[324882369,1714393857414,-500.0,0.00011547,2]
[324882370,1714393857424,-500.0,0.00011547,2]
[324882371,1714393857434,-525.96,0.00011547,2]
[324882372,1714393857444,-500.0,0.00011547,2]
[324882373,1714393857454,-542.89,0.00011547,2]
[324882374,1714393857464,-6225.63,0.00011547,2]
[324882375,1714393857475,-500.0,0.00011547,2]
[324882376,1714393857485,-500.0,0.00011547,2]
[324882377,1714393857495,-1575.66,0.00011547,2]
[324882378,1714393857506,-405.86204669,0.00011547,2]
[324882379,1714393857516,-388.36946073,0.00011547,2]
[324882380,1714393857527,-1112.41,0.00011547,2]
[324882381,1714393857539,-500.0,0.00011547,2]
[324882382,1714393857548,-500.0,0.00011547,2]
[324882383,1714393857558,-500.0,0.00011547,2]
[324882384,1714393857571,-500.0,0.00011547,2]
[324882385,1714393857581,-500.0,0.00011547,2]
[324882386,1714393857592,-500.0,0.00011547,2]
[324882387,1714393857603,-500.0,0.00011547,2]
[324882388,1714393857612,-188.67,0.00011547,2]
[324882389,1714393857623,-151.0,0.00011547,2]
[324882390,1714393857632,-151.0,0.00011547,2]
[324882391,1714393857642,-500.0,0.00011547,2]
[324882392,1714393857652,-500.0,0.00011547,2]
[324882393,1714393857664,-500.0,0.00011547,2]
[324882394,1714393857675,-500.0,0.00011547,2]
[324882395,1714393857685,-151.0,0.00011547,2]
[324882396,1714393857695,-500.0,0.00011547,2]
[324882397,1714393857705,-214.14676,0.00011547,2]
[324882398,1714393857715,-500.0,0.00011547,2]
[324882399,1714393857724,-500.0,0.00011547,2]
[324882400,1714393857734,-500.0,0.00011547,2]
[324882401,1714393857744,-517.57275612,0.00011547,2]
[324882402,1714393857754,-500.0,0.00011547,2]
[324882403,1714393857764,-158.28,0.00011547,2]
[324882404,1714393857774,-234.71,0.00011593,2]
[324882405,1714393857785,-578.1,0.00011593,2]
[324882406,1714393857796,-500.0,0.000118,2]
[324882407,1714393857806,-500.0,0.000118,2]
[324882408,1714393857815,-500.0,0.00011801,2]
[324882409,1714393857825,-500.0,0.00011801,2]
[324882410,1714393857834,-500.0,0.00011801,2]
[324882411,1714393857845,-513.77,0.00011801,2]
[324882412,1714393857855,-500.0,0.00011801,2]
[324882413,1714393857864,-500.0,0.00011801,2]
[324882414,1714393857874,-500.0,0.00011801,2]
[324882415,1714393857884,-500.0,0.00011801,2]
[324882416,1714393857894,-500.0,0.00011801,2]
[324882417,1714393857904,-500.0,0.00011801,2]
[324882418,1714393857913,-500.0,0.00011801,2]
[324882419,1714393857923,-500.0,0.00011801,2]
[324882420,1714393857933,-500.0,0.00011801,2]
[324882421,1714393857943,-500.0,0.00011801,2]
[324882422,1714393857953,-500.0,0.00011801,2]
[324882423,1714393857963,-500.0,0.00011801,2]
[324882424,1714393857973,-150.0,0.00011801,2]
[324882425,1714393857984,-500.0,0.00011801,2]
[324882426,1714393857996,-500.0,0.00011801,2]
[324882427,1714393858007,-221.81,0.00011801,2]
[324882428,1714393858017,-173.66,0.00011801,2]
[324882429,1714393858028,-551.44,0.00011801,2]
[324882430,1714393858040,-500.0,0.00011801,2]
[324882431,1714393858052,-151.0,0.00011801,2]
[324882432,1714393858062,-1136.116103,0.00011801,2]
[324882433,1714393858071,-1136.116103,0.00011801,2]
[324882434,1714393858081,-500.0,0.00011801,2]
[324882435,1714393858091,-500.0,0.00011801,2]
[324882436,1714393858100,-500.0,0.00011801,2]
[324882437,1714393858110,-290.033981,0.00011801,2]
[324882438,1714393858119,-500.0,0.00011801,2]
[324882439,1714393858130,-2182.08,0.00011801,2]
[324882440,1714393858139,-349.416885,0.00011801,2]
[324882441,1714393858148,-290.033981,0.00011801,2]
[324882442,1714393858158,-500.0,0.00011801,2]
[324882443,1714393858168,-349.416885,0.00011801,2]
[324882444,1714393858177,-500.0,0.00011801,2]
[324882445,1714393858187,-500.0,0.00011801,2]
[324882446,1714393858196,-500.0,0.00011801,2]
[324882447,1714393858205,-6502.33,0.00011801,2]
[324882448,1714393858215,-500.0,0.00011801,2]
[324882449,1714393858224,-500.0,0.00011801,2]
[324882450,1714393858234,-500.0,0.00011801,2]
[324882451,1714393858245,-786.63,0.00011801,2]
[324882452,1714393858255,-544.44,0.00011801,2]
[324882453,1714393858265,-500.0,0.00011801,2]
[324882454,1714393858275,-925.552391,0.00011801,2]
[324882455,1714393858285,-925.552391,0.00011801,2]
[324882456,1714393858297,-151.0,0.00011801,2]
[324882457,1714393858307,-500.0,0.00011801,2]
[324882458,1714393858316,-282.989405,0.00011801,2]
[324882459,1714393858326,-500.0,0.00011801,2]
[324882460,1714393858335,-500.0,0.00011801,2]
[324882461,1714393858345,-500.0,0.00011801,2]
[324882462,1714393858357,-500.0,0.00011801,2]
[324882463,1714393858367,-579.41,0.00011801,2]
[324882464,1714393858377,-545.00090208,0.00011801,2]
[324882465,1714393858386,-500.0,0.00011801,2]
[324882466,1714393858396,-619.1670199,0.00011801,2]
[324882467,1714393858406,-2536.3,0.00011801,2]
[324882468,1714393858416,-500.0,0.00011801,2]
[324882469,1714393858426,-367.7,0.00011801,2]
[324882470,1714393858437,-500.0,0.00011801,2]
[324882471,1714393858447,-500.0,0.00011801,2]
[324882472,1714393858457,-1034.81,0.00011801,2]
[324882473,1714393858467,-500.0,0.00011801,2]
[324882474,1714393858477,-500.0,0.00011801,2]
[324882475,1714393858487,-1527.15,0.00011801,2]
[324882476,1714393858497,-500.0,0.00011801,2]
[324882477,1714393858508,-1054.44,0.00011801,2]
[324882478,1714393858657,-500.0,0.00011801,2]
[324882479,1714393858667,-929.79,0.00011801,2]
[324882480,1714393858676,-500.0,0.00011801,2]
[324882481,1714393858686,-1624.96,0.00011801,2]
[324882482,1714393858695,-565.9,0.00011801,2]
[324882483,1714393858704,-746.75,0.00011801,2]
[324882484,1714393858714,-500.0,0.00011801,2]
[324882485,1714393858723,-500.0,0.00011801,2]
[324882486,1714393858732,-943.09,0.00011801,2]
[324882487,1714393858741,-500.0,0.00011801,2]
[324882488,1714393858751,-500.0,0.00011801,2]
[324882489,1714393858760,-579.92424445,0.00011801,2]
[324882490,1714393858770,-780.31,0.00011801,2]
[324882491,1714393858780,-1007.67,0.00011801,2]
[324882492,1714393858790,-500.0,0.00011801,2]
[324882493,1714393858799,-500.0,0.00011801,2]
[324882494,1714393858809,-500.0,0.00011801,2]
[324882495,1714393858818,-500.0,0.00011801,2]
[324882496,1714393858828,-500.0,0.00011801,2]
[324882497,1714393858837,-500.0,0.00011801,2]
[324882498,1714393858847,-500.0,0.00011801,2]
[324882499,1714393858856,-420.81169094,0.00011801,2]
[324882500,1714393858865,-500.0,0.00011801,2]
[324882501,1714393858874,-500.0,0.00011801,2]
[324882502,1714393858884,-735.52,0.00011801,2]
[324882503,1714393858893,-507.74,0.00011801,2]
[324882504,1714393858902,-1371.61,0.00011801,2]
[324882505,1714393858911,-500.0,0.00011801,2]
[324882506,1714393858920,-500.0,0.00011801,2]
[324882507,1714393858929,-500.0,0.00011801,2]
[324882508,1714393858938,-917.74,0.00011801,2]
[324882509,1714393858947,-500.0,0.00011801,2]
[324882510,1714393858956,-537.23,0.00011801,2]
[324882511,1714393858965,-571.08,0.00011801,2]
[324882512,1714393858974,-500.0,0.00011801,2]
[324882513,1714393858983,-5524.5,0.00011801,2]
[324882514,1714393858992,-2383.4,0.00011801,2]
[324882515,1714393859001,-933.07,0.00011801,2]
[324882516,1714393859010,-500.0,0.00011801,2]
[324882517,1714393859019,-500.0,0.00011801,2]
[324882518,1714393859028,-500.0,0.00011801,2]
[324882519,1714393859039,-500.0,0.00011801,2]
[324882520,1714393859050,-500.0,0.00011801,2]
[324882521,1714393859060,-500.0,0.00011801,2]
[324882522,1714393859070,-1165.02,0.00011801,2]
[324882523,1714393859080,-500.0,0.00011801,2]
[324882524,1714393859091,-500.0,0.00011801,2]
[324882525,1714393859102,-500.0,0.00011801,2]
[324882526,1714393859111,-500.0,0.00011801,2]
[324882527,1714393859121,-500.0,0.00011801,2]
[324882528,1714393859134,-269.55,0.00011801,2]
[324882529,1714393859145,-500.0,0.00011801,2]
[324882530,1714393859157,-500.0,0.00011801,2]
[324882531,1714393859167,-500.0,0.00011801,2]
[324882532,1714393859176,-5767.47,0.00011801,2]
[324882533,1714393859186,-500.0,0.00011801,2]
[324882534,1714393859196,-500.0,0.00011801,2]
[324882535,1714393859205,-1209.79,0.00011801,2]
[324882536,1714393859215,-500.0,0.00011801,2]
[324882537,1714393859227,-500.0,0.00011801,2]
[324882538,1714393859238,-500.0,0.00011801,2]
[324882539,1714393859249,-500.0,0.00011801,2]
[324882540,1714393859258,-500.0,0.00011801,2]
[324882541,1714393859268,-500.0,0.0001182,2]
[324882542,1714393859278,-500.0,0.00011821,2]
[324882543,1714393859290,-500.0,0.00011821,2]
[324882544,1714393859300,-997.25,0.00011821,2]
[324882545,1714393859310,-500.0,0.00011821,2]
[324882546,1714393859320,-613.93,0.00011821,2]
[324882547,1714393859331,-500.0,0.00011821,2]
[324882548,1714393859342,-305.82579714,0.00011821,2]
[324882549,1714393859353,-500.0,0.00011821,2]
[324882550,1714393859363,-641.21,0.00011821,2]
[324882551,1714393859374,-500.0,0.00011821,2]
[324882552,1714393859385,-500.0,0.00011821,2]
[324882553,1714393859394,-500.0,0.00011821,2]
[324882554,1714393859404,-500.0,0.00011821,2]
[324882555,1714393859413,-500.0,0.00011821,2]
[324882556,1714393859424,-928.69,0.00011821,2]
[324882557,1714393859435,-500.0,0.00011821,2]
[324882558,1714393859444,-500.0,0.00011821,2]
[324882559,1714393859454,-500.0,0.00011821,2]
[324882560,1714393859463,-500.0,0.00011821,2]
[324882561,1714393859474,-500.0,0.00011821,2]
[324882562,1714393859484,-235.15785723,0.00011821,2]
[324882563,1714393859493,-500.0,0.00011821,2]
[324882564,1714393859502,-546.15,0.00011821,2]
[324882565,1714393859512,-500.0,0.00011821,2]
[324882566,1714393859521,-500.0,0.00011821,2]
[324882567,1714393859530,-500.0,0.00011821,2]
[324882568,1714393859540,-500.0,0.00011821,2]
[324882569,1714393859550,-151.0,0.00011821,2]
[324882570,1714393859559,-538.00837957,0.00011821,2]
[324882571,1714393859568,-500.0,0.00011821,2]
[324882572,1714393859580,-334.649372,0.00011821,2]
[324882573,1714393859590,-334.649372,0.00011821,2]
[324882574,1714393859600,-500.0,0.00011821,2]
[324882575,1714393859611,-500.0,0.00011821,2]
[324882576,1714393859620,-500.0,0.00011821,2]
[324882577,1714393859630,-500.0,0.00011821,2]
[324882578,1714393859640,-381.07517873,0.00011821,2]
[324882579,1714393859649,-500.0,0.00011821,2]
[324882580,1714393859659,-500.0,0.00011821,2]
[324882581,1714393859669,-253.21,0.00011821,2]
[324882582,1714393859678,-500.0,0.00011821,2]
[324882583,1714393859688,-500.0,0.00011821,2]
[324882584,1714393859698,-602.89,0.00011821,2]
[324882585,1714393859709,-500.0,0.00011821,2]
[324882586,1714393859719,-500.0,0.00011821,2]
[324882587,1714393859728,-500.0,0.00011821,2]
[324882588,1714393859737,-500.0,0.00011821,2]
[324882589,1714393859746,-500.0,0.00011821,2]
[324882590,1714393859756,-500.0,0.00011821,2]
[324882591,1714393859765,-555.21,0.00011821,2]
[324882592,1714393859775,-500.0,0.00011821,2]
[324882593,1714393859784,-862.54,0.00011821,2]
[324882594,1714393859795,-500.0,0.00011821,2]
[324882595,1714393859804,-500.0,0.00011821,2]
[324882596,1714393859814,-500.0,0.00011821,2]
[324882597,1714393859824,-500.0,0.00011821,2]
[324882598,1714393859833,-263.76844326,0.00011821,2]
[324882599,1714393859843,-500.0,0.00011821,2]
[324882600,1714393859852,-500.0,0.00011821,2]
[324882601,1714393859861,-500.0,0.00011821,2]
[324882602,1714393859871,-500.0,0.00011821,2]
[324882603,1714393859880,-500.0,0.00011821,2]
[324882604,1714393859889,-525.96,0.00011821,2]
[324882605,1714393859899,-172.03,0.00011821,2]
[324882606,1714393859909,-6225.63,0.00011821,2]
[324882607,1714393859919,-500.0,0.00011821,2]
[324882608,1714393859928,-1575.66,0.00011821,2]
[324882609,1714393859938,-1112.41,0.00011821,2]
[324882610,1714393859947,-514.71,0.00011821,2]
[324882611,1714393859956,-500.0,0.00011821,2]
[324882612,1714393859965,-500.0,0.00011821,2]
[324882613,1714393859975,-500.0,0.00011821,2]
[324882614,1714393859984,-500.0,0.00011821,2]
[324882615,1714393859993,-150.0,0.00011821,3]
[324882616,1714393860003,-500.0,0.00011821,2]
[324882617,1714393860011,-151.0,0.00011821,2]
[324882618,1714393860020,-500.0,0.00011821,2]
[324882619,1714393860030,-500.0,0.00011821,2]
[324882620,1714393860039,-500.0,0.00011821,2]
[324882621,1714393860051,-500.0,0.00011821,2]
[324882622,1714393860063,-629.13388009,0.00011889,2]
[324882623,1714393860072,-52271.9707,0.00011899,2]
[324882624,1714393860082,-151.0,0.00011899,2]
[324882625,1714393860092,-165.600915,0.00011899,2]
[324882626,1714393860101,-492.69346,0.00011899,2]
[324882627,1714393860110,-492.69346,0.00011899,2]
[324882628,1714393860120,-151.0,0.00011899,2]
[324882629,1714393860129,-151.0,0.00011899,2]
[324882630,1714393860141,-11177.7439,0.000119,2]
[324882631,1714393860151,-151.0,0.000119,2]
[324882632,1714393860160,-196.057954,0.000119,2]
[324882633,1714393860169,-196.057954,0.000119,2]
[324882634,1714393860178,-189.73207954,0.00011995,2]
[324882635,1714393860187,-272.14169324,0.00011998,2]
[324882636,1714393860196,-684.39883243,0.00011998,2]
[324882637,1714393860206,-155.0,0.00011998,2]
[324882638,1714393860215,-2227.53410612,0.00011998,2]
[324882639,1714393860226,-155.0,0.00011998,2]
[324882640,1714393860235,-155.16361916,0.00011998,2]
[324882641,1714393860245,-3542.01286038,0.00011998,2]
[324882642,1714393860255,-155.0,0.00011998,2]
[324882643,1714393860264,-2184.01445234,0.00011998,2]
[324882644,1714393860274,-193.1365021,0.00011998,2]
[324882645,1714393860284,-2360.54775782,0.00011998,2]
[324882646,1714393860296,-710.33944675,0.00011998,2]
[324882647,1714393860304,-151.0,0.00011998,2]
[324882648,1714393860314,-151.0,0.00011998,2]
[324882649,1714393860322,-151.0,0.00011998,2]
[324882650,1714393860331,-151.0,0.00011998,2]
[324882651,1714393860340,-25118.54503712,0.00011999,2]
[324882652,1714393860350,-2356.43931281,0.00011999,2]
[324882653,1714393860358,-200.35068603,0.00011999,2]
[324882654,1714393860367,-167.40337534,0.00011999,2]
[324882655,1714393860377,-500.0,0.00011999,2]
[324882656,1714393860386,-151.0,0.00011999,2]
[324882657,1714393860395,-151.188273,0.00011999,2]
[324882658,1714393860405,-1136.116103,0.00011999,2]
[324882659,1714393860414,-1136.116103,0.00011999,2]
[324882660,1714393860423,-290.033981,0.00011999,2]
[324882661,1714393860432,-349.416885,0.00011999,2]
[324882662,1714393860442,-290.033981,0.00011999,2]
[324882663,1714393860451,-349.416885,0.00011999,2]
[324882664,1714393860460,-925.552391,0.00011999,2]
[324882665,1714393860469,-925.552391,0.00011999,2]
[324882666,1714393860478,-344296.31437603,0.00012,2]
[324882667,1714393860488,-409.12386927,0.00012,2]
[324882668,1714393860497,-366.2073039,0.00012,2]
[324882669,1714393860506,-88723.23242089,0.00012,2]
[324882670,1714393860515,-179.73027073,0.00012,2]
[324882671,1714393860524,-305.56661579,0.00012,2]
[324882672,1714393860533,-200.0,0.00012,2]
[324882673,1714393860543,-151.0,0.00012,2]
[324882674,1714393860553,-151.0,0.00012,2]
[324882675,1714393860562,-2000.0,0.00012,2]
[324882676,1714393860571,-200.0,0.00012,2]
[324882677,1714393860580,-196.057954,0.00012,2]
[324882678,1714393860589,-196.057954,0.00012,2]